bitfinex/quotes_ETHUSD_20250529
["timestamp","ask_amount","ask_price","bid_price","bid_amount"]
[1748561767594,3.976,2631.6,2631.4,3.80017956]
[1748561767789,1.1472,2631.9,2631.5,3.800114]
[1748561768020,1.064,2631.7,2631.5,3.800114]
[1748561768189,1.1472,2631.9,2631.5,3.800114]
[1748561768392,5.04,2631.8,2631.6,3.79996734]
[1748561768587,1.064,2631.8,2631.6,3.79986192]
[1748561768931,3.976,2631.7,2631.6,11.58311392]
[1748561769092,3.976,2631.7,2631.6,9.64619692]
[1748561769444,3.976,2631.7,2631.6,3.7998933]
[1748561769596,1.064,2631.8,2631.7,3.7998252]
[1748561770120,0.678767,2632.4,2631.8,10.0]
[1748561770435,0.678767,2632.4,2632.3,26.55720668]
[1748561770760,0.678767,2632.4,2632.3,27.73290668]
[1748561778148,0.678767,2632.4,2632.3,18.67244908]
[1748561778345,0.678767,2632.4,2632.3,15.23110708]
[1748561778525,0.678767,2632.4,2632.3,17.13412602]
[1748561778709,4.651767,2632.4,2632.3,17.13412602]
[1748561779154,0.678767,2632.4,2632.3,17.13412602]
[1748561779448,4.651767,2632.4,2632.3,18.23352602]
[1748561780006,4.651767,2632.4,2632.3,17.13412602]
[1748561780207,4.651767,2632.4,2632.3,15.23110708]
[1748561780445,4.651767,2632.4,2632.3,14.04770108]
[1748561780647,4.651767,2632.4,2632.3,10.248742]
[1748561780851,4.651767,2632.4,2630.1,7.53361499]
[1748561780852,4.651767,2632.4,2631.7,1.0356]
[1748561781148,4.651767,2632.4,2632.0,6.25896491]
[1748561781449,4.651767,2632.4,2632.1,2.391039]
[1748561781646,4.651767,2632.4,2631.7,1.0356]
[1748561781647,3.79920988,2632.2,2631.7,3.79973169]
[1748561781851,1.1157,2632.1,2631.8,3.7995974]
[1748561782148,1.1157,2632.1,2631.7,8.0]
[1748561782149,3.973,2632.0,2631.7,8.0]
[1748561782320,3.973,2632.0,2631.9,18.0]
[1748561782509,3.973,2632.0,2631.6,3.79990175]
[1748561782840,3.973,2632.0,2631.8,6.12860073]
[1748561783046,3.973,2632.0,2631.8,3.79960073]
[1748561783340,3.973,2632.0,2631.9,3.79953645]
[1748561783766,3.973,2632.0,2631.8,8.0]
[1748561783989,3.973,2632.0,2631.9,10.0]
[1748561784458,3.96591039,2632.0,2631.9,10.0]
[1748561786706,3.96591039,2632.0,2631.9,13.79953645]
[1748561787051,3.96591039,2632.0,2631.9,10.0]
[1748561787610,1.1044,2632.3,2631.9,3.799464]
[1748561787811,5.035,2632.2,2631.7,7.43803]
[1748561788111,3.973,2632.1,2632.0,3.79924919]
[1748561788357,3.973,2632.1,2632.0,13.79924919]
[1748561788570,1.740767,2632.4,2632.3,11.79895908]
[1748561788571,0.678767,2632.4,2632.3,11.79895908]
[1748561788784,0.678767,2632.4,2632.3,21.79895908]
[1748561788987,0.678767,2632.4,2632.3,25.99773009]
[1748561789265,1.1044,2633.8,2632.3,25.99773009]
[1748561789266,3.973,2633.3,2633.2,8.0]
[1748561789427,3.973,2633.3,2633.2,3.79766064]
[1748561789621,4.90125013,2633.8,2633.2,11.79766064]
[1748561789838,7.76995504,2633.7,2633.2,11.79766064]
[1748561791285,7.76995504,2633.7,2633.2,8.0]
[1748561791486,3.79717204,2633.6,2633.2,8.0]
[1748561792188,7.77000927,2633.7,2633.2,11.79764318]
[1748561792392,4.90127146,2633.8,2633.3,3.79751042]
[1748561792575,3.972,2633.6,2633.2,11.7975857]
[1748561793071,3.972,2633.6,2633.2,8.0]
[1748561793072,3.79727828,2633.5,2633.2,8.0]
[1748561793388,7.76914595,2633.6,2633.5,0.00517337]
[1748561793797,4.90122619,2633.8,2633.5,0.00517337]
[1748561793956,4.90122671,2633.8,2633.5,0.00517337]
[1748561794154,3.972,2633.7,2633.5,0.00517337]
[1748561794915,1.1035,2634.8,2633.6,9.0541066]
[1748561795054,3.79643884,2634.1,2633.6,8.0]
[1748561795255,3.79643884,2634.1,2633.7,10.062578]
[1748561795493,5.0745,2634.3,2633.5,0.00517337]
[1748561795802,5.45058383,2633.6,2633.5,0.00517337]
[1748561796025,10.48358383,2633.6,2633.5,0.00517337]
[1748561796791,9.93358383,2633.6,2633.5,0.00517337]
[1748561798019,9.92773202,2633.6,2633.5,0.00517337]
[1748561799313,4.89473202,2633.6,2633.5,0.00517337]
[1748561799621,9.92773202,2633.6,2633.5,0.00517337]
[1748561800133,1.1035,2633.6,2633.5,0.00517337]
[1748561800287,6.1365,2633.6,2633.5,0.00517337]
[1748561803113,3.79695083,2633.7,2633.6,3.79697837]
[1748561803114,3.971,2633.7,2633.6,3.79697837]
[1748561803438,1.7697,2634.4,2633.7,10.0]
[1748561803647,5.032,2634.3,2633.6,8.0]
[1748561803944,1.062,2634.3,2633.9,3.79664048]
[1748561804106,3.97,2634.2,2633.8,11.796734]
[1748561804304,3.97,2634.2,2633.8,8.0]
[1748561804545,3.97,2634.2,2633.8,11.79672687]
[1748561804841,3.97,2634.2,2633.9,3.7966509]
[1748561805142,5.56568974,2634.4,2633.9,3.7966509]
[1748561805328,5.032,2634.3,2633.9,3.7966509]
[1748561805535,5.56568974,2634.4,2633.9,3.7966509]
[1748561805735,5.032,2634.2,2633.9,3.7966509]
[1748561805953,0.6667,2634.4,2634.3,13.79607485]
[1748561806135,4.6367,2634.4,2634.3,13.79607485]
[1748561806450,4.6367,2634.4,2634.3,21.79607485]
[1748561806451,0.6667,2634.4,2634.3,21.79607485]
[1748561806744,4.6367,2634.4,2634.3,24.46227226]
[1748561807109,0.6667,2634.4,2634.3,24.46227226]
[1748561807309,4.6367,2634.4,2634.3,20.46153726]
[1748561807635,4.6367,2634.4,2634.3,14.46227226]
[1748561807809,4.6367,2634.4,2634.3,16.58145326]
[1748561808205,4.6367,2634.4,2634.3,16.50222726]
[1748561808516,4.6367,2634.4,2634.3,17.24280826]
[1748561808717,4.6367,2634.4,2634.3,14.46227226]
[1748561809953,4.6367,2634.4,2634.3,8.0]
[1748561810260,4.6367,2634.4,2634.2,2.98557]
[1748561810423,4.6367,2634.4,2634.1,8.0]
[1748561810424,4.6367,2634.4,2634.3,10.0]
[1748561811047,4.6367,2634.4,2634.2,2.91697]
[1748561811252,4.6367,2634.4,2634.3,10.0]
[1748561811860,4.6367,2634.4,2633.5,1.11317337]
[1748561812026,3.79617741,2634.3,2633.9,8.0]
[1748561812755,3.79639179,2634.1,2633.7,10.0]
[1748561812936,3.968,2634.0,2633.8,3.7967955]
[1748561813142,1.06,2633.9,2633.8,3.7967955]
[1748561813655,1.06,2633.9,2633.8,5.9006755]
[1748561813951,5.48555181,2634.4,2634.0,8.0]
[1748561814131,5.028,2634.3,2634.0,8.0]
[1748561814327,5.028,2634.3,2633.9,8.0]
[1748561814528,1.6896,2634.4,2633.9,8.0]
[1748561814529,0.6667,2634.4,2634.3,3.79607485]
[1748561814731,4.6347,2634.4,2634.3,11.79607485]
[1748561815053,4.6347,2634.4,2634.3,17.93762694]
[1748561815254,4.6347,2634.4,2634.3,16.56862694]
[1748561815859,0.6667,2634.4,2634.3,16.56862694]
[1748561816633,4.6347,2634.4,2634.3,16.56862694]
[1748561816829,4.6347,2634.4,2634.3,14.27491285]
[1748561817029,4.6347,2634.4,2634.3,2.478838]
[1748561817230,4.6347,2634.4,2634.3,6.27491285]
[1748561818848,4.6347,2634.4,2634.3,2.0037]
[1748561819030,4.6347,2634.4,2634.3,5.79977485]
[1748561819230,4.6347,2634.4,2634.3,13.79977485]
[1748561820066,0.6667,2634.4,2634.3,13.79977485]
[1748561820269,4.6347,2634.4,2634.3,13.79977485]
[1748561821152,4.6347,2634.4,2634.3,8.0]
[1748561821971,4.6347,2634.4,2634.3,15.70684685]
[1748561822478,0.6667,2634.4,2634.3,15.70684685]
[1748561822687,4.6337,2634.4,2634.3,17.65714668]
[1748561823885,0.6667,2634.4,2634.3,18.73414668]
[1748561824078,0.69496472,2634.9,2634.8,22.87235448]
[1748561824391,0.69496472,2634.9,2634.8,10.66678312]
[1748561824683,0.69496472,2634.9,2634.7,3.79538794]
[1748561824890,3.967,2634.8,2634.7,5.93643107]
[1748561825237,1.75496472,2634.9,2634.8,2.141044]
[1748561825437,5.72196472,2634.9,2634.8,2.141044]
[1748561826075,5.72196472,2634.9,2634.5,8.0]
[1748561826076,9.51722958,2634.9,2634.5,8.0]
[1748561826246,9.51723292,2634.9,2634.4,11.79592045]
[1748561826453,9.51723292,2634.9,2634.2,3.79619927]
[1748561826454,3.79536538,2634.8,2634.3,11.79601765]
[1748561826647,3.79554239,2634.7,2634.3,8.0]
[1748561826847,3.79536538,2634.8,2634.3,3.79602538]
[1748561826848,5.032,2634.6,2634.3,3.79602538]
[1748561827057,0.69496472,2634.9,2634.8,3.79535448]
[1748561827401,4.66196472,2634.9,2634.6,8.0]
[1748561827595,1.0618,2634.8,2634.5,8.0]
[1748561827891,1.0618,2634.8,2634.7,8.0]
[1748561828356,1.0618,2634.8,2634.7,11.79549853]
[1748561828684,4.66196472,2634.9,2634.7,11.79549853]
[1748561829256,4.66196472,2634.9,2634.7,8.0]
[1748561829459,4.66196472,2634.9,2634.2,4.7582476]
[1748561829460,0.69496472,2634.9,2634.2,8.0]
[1748561829660,5.027,2634.8,2634.6,18.0]
[1748561829999,5.027,2634.8,2634.6,11.79552655]
[1748561830279,5.027,2634.8,2634.5,11.79577901]
[1748561830641,5.027,2634.8,2634.6,3.79564022]
[1748561831069,1.06,2634.8,2634.7,3.79549853]
[1748561831238,0.69496472,2634.9,2634.8,8.12440348]
[1748561831442,0.69496472,2634.9,2634.8,6.32192248]
[1748561831644,5.72096472,2634.9,2634.8,6.32192248]
[1748561832278,5.72096472,2634.9,2633.8,0.96976119]
[1748561832581,5.72096472,2634.9,2634.3,11.7959867]
[1748561832582,1.0824,2634.7,2634.3,11.7959867]
[1748561832765,3.966,2634.6,2634.3,3.79596829]
[1748561833077,3.966,2634.6,2633.6,3.846928]
[1748561833078,1.1071,2634.5,2633.6,3.846928]
[1748561833278,0.55,2634.4,2633.7,8.49507014]
[1748561833489,7.76216951,2634.3,2633.8,3.79679333]
[1748561833653,1.1186,2634.2,2633.6,10.0]
[1748561833854,3.79566392,2634.6,2633.8,4.7582476]
[1748561833855,1.06,2634.6,2633.8,4.7582476]
[1748561834185,3.966,2634.5,2634.0,3.79650721]
[1748561834343,7.76187813,2634.5,2634.0,3.79642834]
[1748561834541,1.039,2634.4,2634.0,13.79642834]
[1748561834760,1.039,2634.4,2634.0,3.79642834]
[1748561835198,1.039,2634.4,2634.1,3.79632547]
[1748561835408,1.039,2634.4,2634.0,3.7964683]
[1748561836377,1.039,2634.4,2634.1,3.79628374]
[1748561836704,1.039,2634.4,2634.1,3.79633741]
[1748561836915,3.966,2634.5,2634.1,3.79633741]
[1748561836916,0.69496472,2634.9,2634.3,10.0]
[1748561837074,5.026,2634.8,2634.5,13.111926]
[1748561837274,1.06,2634.8,2634.7,3.79549853]
[1748561837505,3.966,2634.8,2634.7,3.79549853]
[1748561838550,1.75496472,2634.9,2634.8,3.79535448]
[1748561838698,1.75496472,2634.9,2634.7,3.7954384]
[1748561838699,3.966,2634.8,2634.7,3.7954384]
[1748561839212,1.75496472,2634.9,2634.8,21.79535448]
[1748561839420,5.72096472,2634.9,2634.8,21.79535448]
[1748561841007,0.69496472,2634.9,2634.8,14.08083448]
[1748561841210,5.72096472,2634.9,2634.8,11.79535448]
[1748561842209,0.69496472,2634.9,2634.6,8.0]
[1748561842372,5.72096472,2634.9,2634.8,10.0]
[1748561843000,5.72096472,2634.9,2634.8,3.79535448]
[1748561843815,5.72096472,2634.9,2634.8,10.0]
[1748561844313,5.72096472,2634.9,2634.8,13.79535448]
[1748561844677,5.72096472,2634.9,2634.8,3.79535448]
[1748561845313,5.72096472,2634.9,2634.7,3.79548983]
[1748561845515,5.72096472,2634.9,2634.7,8.0]
[1748561845686,1.0556,2634.8,2634.6,10.0]
[1748561846030,3.7956426,2634.6,2634.5,18.0]
[1748561846191,3.7956426,2634.6,2634.0,3.79643249]
[1748561846192,3.7958381,2634.5,2634.0,3.79643249]
[1748561846518,3.79597274,2634.4,2634.1,18.0]
[1748561846687,8.78771491,2634.3,2633.8,3.79673986]
[1748561846876,3.79636486,2634.1,2633.5,0.00517337]
[1748561847076,1.059,2634.0,2633.7,13.79685871]
[1748561847322,3.966,2633.9,2633.8,8.0]
[1748561847717,3.95776965,2633.9,2633.8,8.0]
[1748561848012,3.95776965,2633.9,2633.7,3.79685871]
[1748561848188,3.95776965,2633.9,2633.8,8.0]
[1748561848595,3.95776965,2633.9,2633.8,11.7967955]
[1748561848928,3.95776965,2633.9,2633.7,11.79685604]
[1748561849492,1.059,2634.0,2633.7,11.79685604]
[1748561849691,3.966,2633.9,2633.7,11.79685604]
[1748561850409,3.966,2633.9,2633.7,8.0]
[1748561851627,3.966,2633.9,2633.6,3.79702093]
[1748561852332,3.966,2633.9,2633.7,11.79685198]
[1748561853038,3.966,2633.9,2633.5,0.00517337]
[1748561854227,3.966,2634.4,2634.3,13.79597715]
[1748561854560,2.1812,2634.5,2634.3,13.79597715]
[1748561854773,3.966,2634.4,2634.3,13.79597715]
[1748561854979,3.966,2634.4,2634.3,3.79597715]
[1748561855685,3.966,2634.4,2634.2,10.0]
[1748561855831,3.966,2634.4,2634.1,10.0]
[1748561856029,7.76200912,2634.4,2633.9,3.79662207]
[1748561856274,3.79610142,2634.3,2633.9,12.150383]
[1748561856584,3.79610142,2634.3,2633.9,2.150383]
[1748561856944,3.966,2634.4,2633.9,2.150383]
[1748561857137,3.79607952,2634.3,2634.0,2.1005]
[1748561857476,7.76203677,2634.4,2634.0,2.1005]
[1748561857676,3.966,2634.4,2633.9,10.0]
[1748561857825,3.966,2634.4,2634.0,12.099917]
[1748561858031,3.966,2634.4,2634.0,2.099917]
[1748561858349,7.76199753,2634.4,2634.0,2.099917]
[1748561858528,3.966,2634.4,2634.0,5.89642331]
[1748561858724,3.966,2634.4,2634.0,3.79650631]
[1748561859369,1.1222,2634.5,2634.1,10.0]
[1748561859668,5.025,2634.3,2634.1,3.79627909]
[1748561860273,1.1222,2634.5,2634.1,3.79627909]
[1748561860274,1.1222,2634.5,2634.2,2.45165]
[1748561860427,1.059,2634.2,2634.1,3.79636308]
[1748561860623,1.059,2634.2,2634.0,10.0]
[1748561860933,3.966,2634.1,2634.0,2.196091]
[1748561861190,3.966,2634.1,2634.0,5.99259821]
[1748561861376,1.1222,2634.5,2633.9,3.79665135]
[1748561861674,0.69496472,2634.9,2633.9,3.79665135]
[1748561861675,5.025,2634.4,2634.3,3.79601043]
[1748561861863,1.123,2634.7,2634.3,3.79601043]
[1748561862058,5.025,2634.6,2634.3,3.79601043]
[1748561862396,1.123,2634.7,2634.3,3.79601043]
[1748561862568,4.49018412,2634.9,2634.3,3.79601043]
[1748561862569,1.059,2634.6,2634.3,10.0]
[1748561862765,3.966,2634.5,2634.4,3.79590246]
[1748561863305,3.966,2634.5,2634.3,3.79599364]
[1748561863505,3.966,2634.5,2634.2,3.79614653]
[1748561863673,3.966,2634.5,2634.3,13.79607406]
[1748561863873,3.966,2634.5,2634.3,3.79607406]
[1748561864211,8.84429534,2634.5,2634.1,8.0]
[1748561864712,1.0825,2634.5,2634.1,3.79636167]
[1748561864960,0.69496472,2634.9,2634.5,18.50274]
[1748561865213,0.69496472,2634.9,2634.6,1.0776]
[1748561865214,4.66096472,2634.9,2634.6,1.0776]
[1748561865373,4.66096472,2634.9,2634.6,4.87319692]
[1748561865883,4.66096472,2634.9,2634.5,8.0]
[1748561866290,4.66096472,2634.9,2634.5,3.79576842]
[1748561866805,3.79542831,2634.8,2634.5,8.0]
[1748561867033,4.86442382,2634.8,2634.1,3.79626767]
[1748561867185,4.86442382,2634.8,2634.2,8.0]
[1748561867373,1.069,2634.8,2634.1,8.0]
[1748561867696,3.79562532,2634.7,2634.1,11.79622236]
[1748561867883,3.965,2634.6,2634.1,11.79622236]
[1748561868089,3.965,2634.6,2634.2,3.79615016]
[1748561868926,3.965,2634.6,2634.1,11.79622236]
[1748561869484,3.965,2634.6,2634.2,3.79618031]
[1748561869807,3.965,2634.6,2634.3,11.79595235]
[1748561871507,3.965,2634.6,2634.4,3.79584966]
[1748561871703,3.965,2634.6,2634.3,11.7960036]
[1748561871916,3.965,2634.6,2634.3,8.0]
[1748561872086,0.69496472,2634.9,2634.5,20.0]
[1748561872272,0.69496472,2634.9,2634.4,5.8578476]
[1748561872273,4.69296472,2634.9,2634.8,3.79535448]
[1748561873034,4.69296472,2634.9,2634.7,3.79543808]
[1748561873394,0.69496472,2634.9,2634.8,3.79535448]
[1748561873692,5.74996472,2634.9,2634.7,3.79542293]
[1748561875630,0.69496472,2634.9,2634.7,3.79546795]
[1748561875793,5.068,2634.8,2634.7,3.79546795]
[1748561875997,5.068,2634.8,2634.7,13.79546795]
[1748561876393,5.068,2634.8,2634.7,10.0]
[1748561876638,5.068,2634.8,2634.5,10.0]
[1748561876841,3.79556317,2634.7,2634.2,11.79614491]
[1748561877053,3.79567153,2634.6,2634.2,8.0]
[1748561877335,8.86336672,2634.8,2634.1,3.79631305]
[1748561877336,8.81996384,2634.5,2634.1,8.0]
[1748561877537,8.81996384,2634.5,2634.0,8.0]
[1748561877832,8.81996384,2634.5,2634.2,10.0]
[1748561878036,8.81996384,2634.5,2634.1,3.24388]
[1748561878536,5.0241,2634.5,2634.2,10.0]
[1748561878838,8.81990351,2634.5,2634.1,13.24388]
[1748561879136,8.81990351,2634.5,2633.9,8.0]
[1748561879137,4.87638404,2634.3,2633.9,8.0]
[1748561879338,4.87638404,2634.3,2633.5,3.80233652]
[1748561879339,3.7940384,2634.1,2633.5,3.80233652]
[1748561879635,1.075,2634.0,2633.7,8.0]
[1748561879943,1.075,2634.0,2633.5,4.67033748]
[1748561879944,1.0802,2633.8,2633.5,0.00517337]
[1748561880237,1.0802,2633.8,2633.5,3.80233066]
[1748561880836,1.0802,2633.8,2633.5,0.00517337]
[1748561881050,1.0802,2633.8,2633.5,8.00517337]
[1748561881621,1.0802,2633.8,2633.5,0.00517337]
[1748561882196,4.87707631,2633.8,2633.5,0.00517337]
[1748561882532,1.0802,2633.8,2633.5,8.00517337]
[1748561883134,1.0802,2633.8,2633.5,11.8023484]
[1748561884615,1.0914,2634.7,2633.7,14.7582476]
[1748561884943,5.063,2634.6,2634.3,3.79600183]
[1748561885125,5.063,2634.6,2634.3,10.0]
[1748561885298,5.063,2634.6,2634.2,10.0]
[1748561885501,5.063,2634.6,2634.2,13.7961497]
[1748561885835,5.063,2634.6,2634.3,10.0]
[1748561886154,1.0914,2634.7,2634.3,3.79603181]
[1748561886336,5.061,2634.6,2634.3,13.79603181]
[1748561886662,5.061,2634.6,2634.3,3.79603181]
[1748561886809,5.061,2634.6,2634.3,13.79603181]
[1748561887213,5.061,2634.6,2634.3,3.79603181]
[1748561887798,1.0914,2634.7,2634.3,13.79603181]
[1748561888004,5.059,2634.6,2634.3,3.79603181]
[1748561888206,1.0914,2634.7,2634.3,3.79603181]
[1748561888407,1.075,2634.6,2634.4,3.79593076]
[1748561888741,1.075,2634.6,2634.5,3.79578667]
[1748561888898,5.058,2634.6,2634.5,3.79578667]
[1748561889502,5.058,2634.6,2634.4,3.79585331]
[1748561889818,5.058,2634.6,2634.3,3.79597338]
[1748561890554,8.85376032,2634.6,2634.2,10.0]
[1748561890719,5.058,2634.6,2634.2,3.79609386]
[1748561890917,5.058,2634.6,2634.3,3.79604166]
[1748561891297,0.69496472,2634.9,2634.3,15.17513548]
[1748561891453,0.69496472,2634.9,2634.8,14.01135448]
[1748561891604,0.69496472,2634.9,2634.8,15.04395448]
[1748561892846,0.68938209,2634.9,2634.8,15.04395448]
[1748561893143,4.68638209,2634.9,2634.8,14.01135448]
[1748561893446,4.68638209,2634.9,2634.8,16.36877263]
[1748561894106,4.68638209,2634.9,2634.8,8.51104314]
[1748561894305,0.68938209,2634.9,2634.8,8.36877263]
[1748561894512,4.68338209,2634.9,2634.8,8.36877263]
[1748561895246,0.68938209,2634.9,2634.8,8.36877263]
[1748561895574,4.68238209,2634.9,2634.8,8.36877263]
[1748561895779,4.68138209,2634.9,2634.8,8.36877263]
[1748561896768,4.68138209,2634.9,2634.8,6.01135448]
[1748561897447,4.67416639,2634.9,2634.8,6.01135448]
[1748561899290,4.67416639,2634.9,2634.8,14.01135448]
[1748561899739,0.68216639,2634.9,2634.8,14.01135448]
[1748561899944,4.66716639,2634.9,2634.8,14.01135448]
[1748561900999,4.66716639,2634.9,2634.8,10.216]
[1748561901206,4.66716639,2634.9,2634.8,8.0]
[1748561901349,4.66716639,2634.9,2634.7,3.7954894]
[1748561902387,4.66716639,2634.9,2634.6,8.0]
[1748561902595,1.0696,2634.8,2634.2,3.7960759]
[1748561902796,4.86501885,2634.8,2634.4,10.0]
[1748561902986,1.0696,2634.8,2634.5,3.79575269]
[1748561903806,1.0696,2634.8,2634.4,3.79585086]
[1748561904686,1.0696,2634.8,2634.5,3.7957824]
[1748561905267,1.0696,2634.8,2634.4,3.79585269]
[1748561905466,4.86495878,2634.8,2634.3,11.79598027]
[1748561905656,3.79556506,2634.7,2634.3,8.0]
[1748561905880,3.979,2634.6,2634.3,8.0]
[1748561906077,3.979,2634.6,2634.1,8.0]
[1748561906282,3.979,2634.6,2634.3,3.79598817]
[1748561907501,0.68216639,2634.9,2634.7,3.79549853]
[1748561907816,0.68216639,2634.9,2634.6,10.0]
[1748561907817,0.68216639,2634.9,2634.8,3.79535448]
[1748561907962,5.72816639,2634.9,2634.8,3.79535448]
[1748561908365,5.72816639,2634.9,2634.7,3.79546023]
[1748561908366,0.68216639,2634.9,2634.7,3.79546023]
[1748561908588,5.72616639,2634.9,2634.7,3.79546023]
[1748561908894,5.044,2634.8,2634.4,10.0]
[1748561909095,5.044,2634.8,2634.6,13.79563624]
[1748561909792,5.044,2634.8,2634.6,10.0]
[1748561910127,0.68216639,2634.9,2634.6,13.79556797]
[1748561910413,5.042,2634.7,2634.6,13.79556797]
[1748561910580,5.041,2634.7,2634.6,13.79556797]
[1748561910918,0.68216639,2634.9,2634.7,0.00617502]
[1748561911092,5.041,2634.8,2634.7,0.00617502]
[1748561912393,5.039,2634.8,2634.7,0.00617502]
[1748561914090,0.33468371,2634.9,2634.7,0.00617502]
[1748561914298,5.036,2634.8,2634.7,0.00617502]
[1748561915515,8.83135448,2634.8,2634.7,0.00617502]
[1748561915722,8.82935448,2634.8,2634.7,0.00617502]
[1748561916221,5.034,2634.8,2634.7,0.00617502]
[1748561916417,8.82935448,2634.8,2634.7,0.00617502]
[1748561916796,5.034,2634.8,2634.7,0.00617502]
[1748561917008,9.85725448,2634.8,2634.7,0.00617502]
[1748561918536,6.0619,2634.8,2634.7,0.00617502]
[1748561920235,6.05582505,2634.8,2634.7,0.00617502]
[1748561920884,9.85117953,2634.8,2634.7,0.00617502]
[1748561921089,6.05582505,2634.8,2634.7,0.00617502]
[1748561922046,0.33468371,2634.9,2634.8,20.526]
[1748561922203,0.33468371,2634.9,2634.8,13.84857198]
[1748561922399,0.33468371,2634.9,2634.7,4.76442262]
[1748561922400,1.37868371,2634.9,2634.7,0.00617502]
[1748561922621,5.071,2634.8,2634.7,0.00617502]
[1748561925340,5.067,2634.8,2634.7,0.00617502]
[1748561926036,5.066,2634.8,2634.7,0.00617502]
[1748561926894,1.37868371,2634.9,2634.7,0.00617502]
[1748561927095,5.064,2634.8,2634.7,0.00617502]
[1748561927639,5.063,2634.8,2634.7,0.00617502]
[1748561929126,5.05496677,2634.8,2634.7,0.00617502]
[1748561929330,5.05296677,2634.8,2634.7,0.00617502]
[1748561931117,5.05296677,2634.8,2634.6,10.0]
[1748561931319,1.05896677,2634.8,2634.6,3.79557574]
[1748561931516,3.99,2634.7,2634.6,3.79557574]
[1748561932103,3.99,2634.7,2634.4,14.30495666]
[1748561932303,3.99,2634.7,2634.6,13.7956426]
[1748561932515,3.99,2634.7,2634.6,3.7956426]
[1748561932719,1.40168371,2634.9,2634.7,3.79544558]
[1748561932920,0.33468371,2634.9,2634.8,34.30441649]
[1748561933119,0.33468371,2634.9,2634.8,25.33311649]
[1748561933503,4.32121785,2634.9,2634.8,25.33311649]
[1748561934109,4.32021785,2634.9,2634.8,25.33311649]
[1748561934746,0.32721785,2634.9,2634.8,25.33311649]
[1748561935044,0.32721785,2634.9,2634.8,28.3469742]
[1748561935857,0.32721785,2634.9,2634.8,21.4198402]
[1748561936152,0.32721785,2634.9,2634.8,14.36822048]
[1748561936386,0.32721785,2634.9,2634.8,8.0]
[1748561936556,0.32721785,2634.9,2634.8,11.79535448]
[1748561937514,0.32721785,2634.9,2634.7,8.0]
[1748561937727,0.32721785,2634.9,2634.6,2.50906201]
[1748561937728,3.99,2634.8,2634.6,21.79563786]
[1748561937927,3.99,2634.8,2634.7,3.79549853]
[1748561938142,3.98218091,2634.8,2634.7,3.79549853]
[1748561938342,0.32721785,2634.9,2634.7,3.79549853]
[1748561938546,5.063,2634.8,2634.7,3.79549853]
[1748561939222,0.32721785,2634.9,2634.7,3.79549853]
[1748561939424,0.32721785,2634.9,2634.8,10.0]
[1748561939634,5.38821785,2634.9,2634.8,10.0]
[1748561940019,5.38821785,2634.9,2634.8,3.79535448]
[1748561940234,5.38621785,2634.9,2634.8,3.79535448]
[1748561940741,5.38621785,2634.9,2634.8,10.0]
[1748561940943,5.38621785,2634.9,2634.8,3.79535448]
[1748561941868,5.38621785,2634.9,2634.8,13.79535448]
[1748561942081,0.32721785,2634.9,2634.8,13.79535448]
[1748561942234,5.38421785,2634.9,2634.8,3.79535448]
[1748561942875,5.38421785,2634.9,2634.8,13.79535448]
[1748561943078,5.38421785,2634.9,2634.7,3.79546463]
[1748561943275,5.38421785,2634.9,2634.8,3.79535448]
[1748561943474,5.38421785,2634.9,2634.8,13.79535448]
[1748561943691,5.38121785,2634.9,2634.8,13.79535448]
[1748561944041,0.32721785,2634.9,2634.8,3.79535448]
[1748561944242,5.38021785,2634.9,2634.8,3.79535448]
[1748561944469,0.32721785,2634.9,2634.8,3.79535448]
[1748561944774,5.38021785,2634.9,2634.8,3.79535448]
[1748561945176,5.37921785,2634.9,2634.8,13.79535448]
[1748561945536,0.32721785,2634.9,2634.8,13.79535448]
[1748561945758,5.37821785,2634.9,2634.8,13.79535448]
[1748561946348,5.37721785,2634.9,2634.8,13.79535448]
[1748561946750,0.32721785,2634.9,2634.8,13.79535448]
[1748561946976,5.37621785,2634.9,2634.8,13.79535448]
[1748561947161,5.37202412,2634.9,2634.8,13.79535448]
[1748561947563,5.37102412,2634.9,2634.8,13.79535448]
[1748561948189,0.32302412,2634.9,2634.8,17.20224952]
[1748561948482,4.29702412,2634.9,2634.8,9.44457752]
[1748561948682,0.32302412,2634.9,2634.8,17.44457752]
[1748561948859,4.29702412,2634.9,2634.8,17.44457752]
[1748561950281,4.29502412,2634.9,2634.8,16.09653946]
[1748561950442,4.29502412,2634.9,2634.8,18.08574298]
[1748561950845,0.32302412,2634.9,2634.8,18.08574298]
[1748561951045,4.29302412,2634.9,2634.8,18.08574298]
[1748561951242,0.32302412,2634.9,2634.8,18.08574298]
[1748561951491,8.64283054,2636.4,2635.2,9.0091]
[1748561951492,1.074,2635.7,2635.2,9.0091]
[1748561951672,0.44783054,2636.6,2635.9,3.7936859]
[1748561951673,4.89691236,2636.6,2635.9,3.7936859]
[1748561951873,1.074,2636.0,2635.8,6.30290238]
[1748561952180,1.074,2636.0,2635.9,10.0]
[1748561952346,5.046,2636.0,2635.9,10.0]
[1748561952942,5.046,2636.0,2635.7,11.0091]
[1748561953146,5.5506,2636.0,2635.8,10.0]
[1748561953370,5.5506,2636.0,2635.8,2.104997]
[1748561953783,5.043,2635.9,2635.8,2.104997]
[1748561954290,5.042,2635.9,2635.8,2.104997]
[1748561954660,0.5046,2636.0,2635.8,2.104997]
[1748561954855,5.042,2635.9,2635.8,2.104997]
[1748561955099,5.041,2635.9,2635.8,2.104997]
[1748561955604,5.041,2635.9,2635.4,8.0]
[1748561955605,5.43423303,2635.9,2635.4,8.0]
[1748561955748,9.22806327,2635.9,2635.4,8.0]
[1748561956447,9.22806327,2635.9,2635.4,11.79447807]
[1748561956784,5.43423303,2635.9,2635.5,3.7943448]
[1748561956993,0.5046,2635.8,2635.5,3.7943448]
[1748561957398,0.5046,2635.8,2635.4,11.79442051]
[1748561957598,0.5046,2635.8,2635.5,3.79431934]
[1748561957889,0.5046,2635.8,2635.6,3.20533]